[Event "*** SCC Grand Prix: Titled Tuesday Blitz"]
[Site "Chess.com"]
[Date "2020.09.29"]
[Round "4"]
[White "banane_verte"]
[Black "ChrisTool2"]
[Result "0-1"]
[WhiteElo "2475"]
[BlackElo "2334"]
[TimeControl "180+1"]
[EndTime "10:39:11 PDT"]
[Termination "ChrisTool2 won by resignation"]

1. e4 {[%clk 0:03:00.9]} 1... c5 {[%clk 0:02:59.4]} 2. Nc3 {[%clk 0:03:00.7]}
2... d6 {[%clk 0:02:59.5]} 3. d4 {[%clk 0:03:00.6]} 3... cxd4 {[%clk 0:02:59.4]}
4. Qxd4 {[%clk 0:03:01.5]} 4... Nf6 {[%clk 0:02:59.4]} 5. Bg5 {[%clk 0:03:01.1]}
5... Nc6 {[%clk 0:02:58.1]} 6. Bb5 {[%clk 0:03:00.5]} 6... Bd7 {[%clk
0:02:58.4]} 7. Bxc6 {[%clk 0:03:00.7]} 7... bxc6 {[%clk 0:02:58.9]} 8. Nf3
{[%clk 0:02:54.8]} 8... Qb6 {[%clk 0:02:57]} 9. Qd3 {[%clk 0:02:43]} 9... h6
{[%clk 0:02:30.1]} 10. O-O {[%clk 0:02:42.9]} 10... hxg5 {[%clk 0:02:28.9]} 11.
Nxg5 {[%clk 0:02:22.7]} 11... Qc5 {[%clk 0:02:26.8]} 12. Nf3 {[%clk 0:02:21.7]}
12... e5 {[%clk 0:02:22.4]} 13. Rad1 {[%clk 0:02:17.8]} 13... Be7 {[%clk
0:02:22.4]} 14. Nd2 {[%clk 0:02:17.8]} 14... Nh5 {[%clk 0:02:17.2]} 15. g3
{[%clk 0:02:10.1]} 15... Bh3 {[%clk 0:02:15.2]} 16. Rfe1 {[%clk 0:02:09.5]}
16... Nf6 {[%clk 0:02:15.8]} 17. Nc4 {[%clk 0:02:00.1]} 17... Rd8 {[%clk
0:02:10.7]} 18. Rd2 {[%clk 0:01:51.4]} 18... Be6 {[%clk 0:02:09.5]} 19. Ne3
{[%clk 0:01:49.5]} 19... Ng4 {[%clk 0:02:09]} 20. Nxg4 {[%clk 0:01:47]} 20...
Bxg4 {[%clk 0:02:09.9]} 21. Qa6 {[%clk 0:01:39.7]} 21... Bg5 {[%clk 0:01:59.7]}
22. Rd3 {[%clk 0:01:35]} 22... Rxh2 {[%clk 0:01:53.5]} 23. Kxh2 {[%clk
0:01:24.3]} 23... Qxf2+ {[%clk 0:01:52.7]} 24. Kh1 {[%clk 0:01:23.8]} 24...
Qxe1+ {[%clk 0:01:31.7]} 25. Kg2 {[%clk 0:01:23.9]} 25... Be3 {[%clk 0:01:31.8]}
26. Rxe3 {[%clk 0:01:01.3]} 26... Qxe3 {[%clk 0:01:32.7]} 27. Qxc6+ {[%clk
0:01:01.3]} 27... Kf8 {[%clk 0:01:30.5]} 28. Qc7 {[%clk 0:00:56.7]} 28... Bf3+
{[%clk 0:01:25.5]} 29. Kf1 {[%clk 0:00:50.8]} 29... Qb6 {[%clk 0:01:12.8]} 30.
Qxb6 {[%clk 0:00:41.1]} 30... axb6 {[%clk 0:01:12.4]} 31. Kf2 {[%clk 0:00:42]}
31... Bg4 {[%clk 0:01:10.4]} 32. Nd5 {[%clk 0:00:42]} 32... Be6 {[%clk
0:01:09.9]} 33. Nxb6 {[%clk 0:00:38]} 33... Rb8 {[%clk 0:01:08.2]} 34. Na4
{[%clk 0:00:38.4]} 34... Rb4 {[%clk 0:01:06.5]} 35. b3 {[%clk 0:00:37.7]} 35...
Rxe4 {[%clk 0:01:06.4]} 36. Nc3 {[%clk 0:00:36.1]} 36... Rd4 {[%clk 0:01:04.4]}
37. Ke3 {[%clk 0:00:36.4]} 37... f5 {[%clk 0:01:03.6]} 38. a4 {[%clk 0:00:35.2]}
38... g5 {[%clk 0:01:01.7]} 39. a5 {[%clk 0:00:34.7]} 39... f4+ {[%clk
0:01:02.2]} 40. gxf4 {[%clk 0:00:35.6]} 40... gxf4+ {[%clk 0:01:01.9]} 41. Ke2
{[%clk 0:00:34.5]} 41... Bc8 {[%clk 0:01:00.9]} 42. Nb5 {[%clk 0:00:31.8]} 42...
Rd5 {[%clk 0:00:56]} 43. c4 {[%clk 0:00:29.5]} 43... Ba6 {[%clk 0:00:47.5]} 44.
Nc7 {[%clk 0:00:22.6]} 44... Rxa5 {[%clk 0:00:47]} 45. b4 {[%clk 0:00:20.4]}
45... Ra2+ {[%clk 0:00:44.2]} 46. Kd3 {[%clk 0:00:20.4]} 46... f3 {[%clk
0:00:40.8]} 47. Ne6+ {[%clk 0:00:08.5]} 47... Ke7 {[%clk 0:00:39.1]} 48. Ng7
{[%clk 0:00:07.6]} 48... f2 {[%clk 0:00:35.4]} 49. Nf5+ {[%clk 0:00:07.7]} 49...
Kf6 {[%clk 0:00:34.4]} 50. Ne3 {[%clk 0:00:06.5]} 50... Ra3+ {[%clk 0:00:34]}
51. Kd2 {[%clk 0:00:06.9]} 51... Rxe3 {[%clk 0:00:34]} 52. b5 {[%clk 0:00:06.8]}
52... f1=Q {[%clk 0:00:33]} 53. Kxe3 {[%clk 0:00:07.1]} 53... Qxc4 {[%clk
0:00:31.7]} 54. bxa6 {[%clk 0:00:06.8]} 54... Qxa6 {[%clk 0:00:31.4]} 0-1

[Event "*** SCC Grand Prix: Titled Tuesday Blitz"]
[Site "Chess.com"]
[Date "2020.09.29"]
[Round "4"]
[White "mapleaff"]
[Black "manuellarrea"]
[Result "1-0"]
[WhiteElo "2378"]
[BlackElo "2112"]
[TimeControl "180+1"]
[EndTime "10:39:13 PDT"]
[Termination "mapleaff won on time"]

1. d4 {[%clk 0:03:00.9]} 1... Nf6 {[%clk 0:02:58.9]} 2. c4 {[%clk 0:03:00.3]}
2... e6 {[%clk 0:02:59.1]} 3. g3 {[%clk 0:02:59]} 3... d5 {[%clk 0:02:58.9]} 4.
Bg2 {[%clk 0:02:59.1]} 4... Be7 {[%clk 0:02:58.1]} 5. Nf3 {[%clk 0:02:59]} 5...
O-O {[%clk 0:02:58.4]} 6. O-O {[%clk 0:02:59.4]} 6... dxc4 {[%clk 0:02:58.3]} 7.
Qc2 {[%clk 0:02:56.1]} 7... b6 {[%clk 0:02:56]} 8. Bg5 {[%clk 0:02:53.5]} 8...
Ba6 {[%clk 0:02:40.2]} 9. Ne5 {[%clk 0:02:49.6]} 9... Nd5 {[%clk 0:02:37.4]} 10.
Bxe7 {[%clk 0:02:48.6]} 10... Qxe7 {[%clk 0:02:35.3]} 11. Nd2 {[%clk 0:02:30.2]}
11... c5 {[%clk 0:02:31.9]} 12. dxc5 {[%clk 0:02:25.5]} 12... Qxc5 {[%clk
0:02:21.5]} 13. Ndxc4 {[%clk 0:02:12.9]} 13... f6 {[%clk 0:02:04.7]} 14. e4
{[%clk 0:01:50.8]} 14... Nb4 {[%clk 0:01:52.5]} 15. Qb3 {[%clk 0:01:40.9]} 15...
fxe5 {[%clk 0:01:51.6]} 16. Rfc1 {[%clk 0:01:40.2]} 16... N4c6 {[%clk
0:01:35.6]} 17. Ne3 {[%clk 0:01:37.7]} 17... Qd6 {[%clk 0:01:28.7]} 18. Rd1
{[%clk 0:01:33.5]} 18... Nd4 {[%clk 0:01:27.8]} 19. Qa4 {[%clk 0:01:33.3]} 19...
Bb7 {[%clk 0:01:12.4]} 20. Nc4 {[%clk 0:01:29.3]} 20... Qc7 {[%clk 0:01:08]} 21.
Ne3 {[%clk 0:01:07.5]} 21... b5 {[%clk 0:00:51.3]} 22. Qb4 {[%clk 0:01:05.5]}
22... Nbc6 {[%clk 0:00:48.9]} 23. Qc5 {[%clk 0:01:04]} 23... Qb6 {[%clk
0:00:43.2]} 24. Qa3 {[%clk 0:00:54.1]} 24... Rad8 {[%clk 0:00:37.1]} 25. h4
{[%clk 0:00:48]} 25... a5 {[%clk 0:00:27.9]} 26. Bf1 {[%clk 0:00:41.6]} 26...
Nf3+ {[%clk 0:00:22.3]} 27. Kg2 {[%clk 0:00:41.6]} 27... Ncd4 {[%clk 0:00:15.5]}
28. Bd3 {[%clk 0:00:33.8]} 28... b4 {[%clk 0:00:13.3]} 29. Qa4 {[%clk
0:00:33.9]} 29... Rf6 {[%clk 0:00:11]} 30. Nc4 {[%clk 0:00:32.9]} 30... Qa7
{[%clk 0:00:08.9]} 31. Qxa5 {[%clk 0:00:28.7]} 31... Qxa5 {[%clk 0:00:08]} 32.
Nxa5 {[%clk 0:00:29.6]} 32... Ba8 {[%clk 0:00:07.6]} 33. Rac1 {[%clk 0:00:29.8]}
33... Rdf8 {[%clk 0:00:07.2]} 34. Nc4 {[%clk 0:00:17.8]} 34... h6 {[%clk
0:00:06.9]} 35. a3 {[%clk 0:00:14.7]} 35... g5 {[%clk 0:00:06.3]} 36. hxg5
{[%clk 0:00:13.9]} 36... Nxg5 {[%clk 0:00:04.8]} 37. axb4 {[%clk 0:00:14.8]}
37... Rxf2+ {[%clk 0:00:02.9]} 38. Kh1 {[%clk 0:00:15.4]} 38... Nh3 {[%clk
0:00:02]} 39. Rf1 {[%clk 0:00:15]} 39... Rxf1+ {[%clk 0:00:01.4]} 40. Rxf1
{[%clk 0:00:14.7]} 40... Rxf1+ {[%clk 0:00:01.6]} 41. Bxf1 {[%clk 0:00:15.6]}
41... Ng5 {[%clk 0:00:01.3]} 42. Bg2 {[%clk 0:00:15]} 1-0

[Event "*** SCC Grand Prix: Titled Tuesday Blitz"]
[Site "Chess.com"]
[Date "2020.09.29"]
[Round "4"]
[White "kreonx"]
[Black "WinstonSilvakov"]
[Result "1-0"]
[WhiteElo "2354"]
[BlackElo "2126"]
[TimeControl "180+1"]
[EndTime "10:39:15 PDT"]
[Termination "kreonx won by resignation"]

1. e4 {[%clk 0:03:00.9]} 1... Nf6 {[%clk 0:03:00.2]} 2. e5 {[%clk 0:03:00.2]}
2... Nd5 {[%clk 0:02:59.2]} 3. Nc3 {[%clk 0:03:01.1]} 3... Nxc3 {[%clk 0:02:59]}
4. dxc3 {[%clk 0:03:02]} 4... d5 {[%clk 0:02:57.7]} 5. f4 {[%clk 0:03:02.1]}
5... c5 {[%clk 0:02:56.9]} 6. Nf3 {[%clk 0:03:02.6]} 6... Nc6 {[%clk 0:02:56.6]}
7. Be3 {[%clk 0:03:02.4]} 7... e6 {[%clk 0:02:50]} 8. Qd2 {[%clk 0:03:02.8]}
8... a6 {[%clk 0:02:47.3]} 9. a4 {[%clk 0:03:01.2]} 9... Qc7 {[%clk 0:02:44.7]}
10. Bd3 {[%clk 0:03:00.6]} 10... Be7 {[%clk 0:02:42.7]} 11. O-O {[%clk
0:02:59.5]} 11... b6 {[%clk 0:02:41.6]} 12. Rae1 {[%clk 0:02:47.4]} 12... Bb7
{[%clk 0:02:41.1]} 13. f5 {[%clk 0:02:42.5]} 13... h6 {[%clk 0:02:36]} 14. fxe6
{[%clk 0:02:40.9]} 14... fxe6 {[%clk 0:02:36.2]} 15. Bg6+ {[%clk 0:02:40.8]}
15... Kd7 {[%clk 0:02:36.1]} 16. Bf2 {[%clk 0:02:32.4]} 16... Rad8 {[%clk
0:02:33.9]} 17. c4 {[%clk 0:02:19.9]} 17... Kc8 {[%clk 0:02:33.6]} 18. cxd5
{[%clk 0:02:19.4]} 18... Rxd5 {[%clk 0:02:33.4]} 19. Qe2 {[%clk 0:02:15.3]}
19... Nd4 {[%clk 0:02:31.6]} 20. Nxd4 {[%clk 0:02:13.6]} 20... cxd4 {[%clk
0:02:30]} 21. Be4 {[%clk 0:02:05.1]} 21... Rd7 {[%clk 0:02:16]} 22. Bxb7+ {[%clk
0:01:46.7]} 22... Qxb7 {[%clk 0:02:11.4]} 23. Qc4+ {[%clk 0:01:45.9]} 23... Kb8
{[%clk 0:02:05.8]} 24. Qxe6 {[%clk 0:01:45.6]} 24... Rhd8 {[%clk 0:01:59.3]} 25.
Bg3 {[%clk 0:01:40.2]} 25... Ka8 {[%clk 0:01:58.3]} 26. Rd1 {[%clk 0:01:30]}
26... d3 {[%clk 0:01:55.1]} 27. Rxd3 {[%clk 0:01:23.7]} 27... Rxd3 {[%clk
0:01:54.9]} 28. cxd3 {[%clk 0:01:24.6]} 28... Rxd3 {[%clk 0:01:52.4]} 29. Qg8+
{[%clk 0:01:14]} 29... Ka7 {[%clk 0:01:52.1]} 30. e6 {[%clk 0:00:58]} 30... Rd2
{[%clk 0:01:42.7]} 31. Bf2 {[%clk 0:00:54.3]} 31... Bc5 {[%clk 0:01:42]} 32. Qf7
{[%clk 0:00:50.5]} 32... Qxf7 {[%clk 0:01:30.5]} 33. exf7 {[%clk 0:00:49]} 33...
Bf8 {[%clk 0:01:24.5]} 34. a5 {[%clk 0:00:48.7]} 34... Rxb2 {[%clk 0:01:23.7]}
35. Bxb6+ {[%clk 0:00:43.9]} 35... Kb7 {[%clk 0:01:21.7]} 36. Rd1 {[%clk
0:00:42.2]} 36... Rc2 {[%clk 0:01:08.5]} 37. Rd7+ {[%clk 0:00:33.5]} 37... Kb8
{[%clk 0:01:06.9]} 38. Kf1 {[%clk 0:00:17.9]} 38... Rc8 {[%clk 0:01:05.5]} 39.
Ke2 {[%clk 0:00:17.2]} 39... Bb4 {[%clk 0:01:03.2]} 40. Kd3 {[%clk 0:00:15.6]}
40... Bf8 {[%clk 0:01:03]} 41. Ke4 {[%clk 0:00:14.8]} 41... Bb4 {[%clk
0:01:03.1]} 42. Kf5 {[%clk 0:00:14.8]} 42... g5 {[%clk 0:01:02.5]} 43. Kg6
{[%clk 0:00:14.3]} 43... g4 {[%clk 0:01:02.1]} 44. Rd8 {[%clk 0:00:09.7]} 44...
Rxd8 {[%clk 0:01:01.3]} 45. Bxd8 {[%clk 0:00:10.6]} 45... Kc8 {[%clk 0:01:01.5]}
46. Bb6 {[%clk 0:00:10.4]} 46... Kd7 {[%clk 0:01:01.3]} 47. Kg7 {[%clk
0:00:10.2]} 47... h5 {[%clk 0:01:01.2]} 48. f8=Q {[%clk 0:00:10]} 48... Bxf8+
{[%clk 0:01:01.1]} 49. Kxf8 {[%clk 0:00:10.9]} 49... h4 {[%clk 0:01:01.1]} 50.
Kg7 {[%clk 0:00:10.9]} 50... Ke6 {[%clk 0:01:00.7]} 51. Kg6 {[%clk 0:00:10.8]}
51... h3 {[%clk 0:00:59.6]} 52. g3 {[%clk 0:00:10.5]} 52... Kd5 {[%clk
0:01:00.5]} 53. Kg5 {[%clk 0:00:10.7]} 53... Ke4 {[%clk 0:01:01.4]} 54. Kxg4
{[%clk 0:00:11.6]} 54... Kd3 {[%clk 0:01:01.3]} 55. Kxh3 {[%clk 0:00:12.5]}
55... Ke2 {[%clk 0:01:01.5]} 56. Kg4 {[%clk 0:00:13.4]} 56... Kd3 {[%clk
0:01:00.2]} 57. h4 {[%clk 0:00:14.3]} 57... Kc4 {[%clk 0:01:00.7]} 58. h5 {[%clk
0:00:14.6]} 58... Kd5 {[%clk 0:01:01.6]} 59. h6 {[%clk 0:00:15.1]} 59... Ke6
{[%clk 0:01:02.5]} 60. h7 {[%clk 0:00:15.8]} 60... Kf7 {[%clk 0:01:03.4]} 61.
h8=Q {[%clk 0:00:15.4]} 1-0

[Event "*** SCC Grand Prix: Titled Tuesday Blitz"]
[Site "Chess.com"]
[Date "2020.09.29"]
[Round "4"]
[White "Alexander_Donchenko"]
[Black "TimofeevAr"]
[Result "1/2-1/2"]
[WhiteElo "2686"]
[BlackElo "2862"]
[TimeControl "180+1"]
[EndTime "10:39:17 PDT"]
[Termination "Game drawn by repetition"]

1. e4 {[%clk 0:03:00.9]} 1... d6 {[%clk 0:02:59.7]} 2. d4 {[%clk 0:02:58.7]}
2... Nf6 {[%clk 0:02:59.5]} 3. Nc3 {[%clk 0:02:52.1]} 3... g6 {[%clk 0:02:59.3]}
4. Be3 {[%clk 0:02:50.7]} 4... c6 {[%clk 0:02:56.3]} 5. Qd2 {[%clk 0:02:49.6]}
5... b5 {[%clk 0:02:54.7]} 6. Bd3 {[%clk 0:02:49.2]} 6... Nbd7 {[%clk
0:02:49.6]} 7. a4 {[%clk 0:02:45.9]} 7... b4 {[%clk 0:02:37.2]} 8. Nce2 {[%clk
0:02:43.3]} 8... a5 {[%clk 0:02:36.3]} 9. h3 {[%clk 0:02:41.6]} 9... Bb7 {[%clk
0:02:33.7]} 10. Nf3 {[%clk 0:02:33.3]} 10... Bg7 {[%clk 0:02:24.5]} 11. Bh6
{[%clk 0:02:29.6]} 11... O-O {[%clk 0:02:24.4]} 12. O-O {[%clk 0:02:19.9]} 12...
e5 {[%clk 0:02:23.2]} 13. Bxg7 {[%clk 0:02:17.5]} 13... Kxg7 {[%clk 0:02:23.1]}
14. dxe5 {[%clk 0:02:15.9]} 14... dxe5 {[%clk 0:02:22.6]} 15. Qe3 {[%clk
0:01:53.5]} 15... Qe7 {[%clk 0:02:19.9]} 16. Nc1 {[%clk 0:01:46.3]} 16... Nc5
{[%clk 0:02:10.8]} 17. Rd1 {[%clk 0:01:35.3]} 17... Rfd8 {[%clk 0:02:02.8]} 18.
Nb3 {[%clk 0:01:24.1]} 18... Nfd7 {[%clk 0:02:02.5]} 19. Nfd2 {[%clk 0:01:19.8]}
19... h5 {[%clk 0:01:25.9]} 20. Nxc5 {[%clk 0:01:15.2]} 20... Nxc5 {[%clk
0:01:24.2]} 21. Nb3 {[%clk 0:01:14.9]} 21... Nxb3 {[%clk 0:01:19.7]} 22. cxb3
{[%clk 0:01:15.8]} 22... c5 {[%clk 0:01:20.1]} 23. Bc4 {[%clk 0:01:09.3]} 23...
Rd4 {[%clk 0:01:19.6]} 24. f3 {[%clk 0:01:07.2]} 24... Rad8 {[%clk 0:01:18.8]}
25. Rd3 {[%clk 0:01:02.9]} 25... Bc8 {[%clk 0:01:11.4]} 26. Rc1 {[%clk
0:00:57.3]} 26... Be6 {[%clk 0:01:09.1]} 27. Rxd4 {[%clk 0:00:54.1]} 27... cxd4
{[%clk 0:01:04.8]} 28. Qd2 {[%clk 0:00:49.7]} 28... d3 {[%clk 0:01:01.9]} 29.
Bxe6 {[%clk 0:00:41.4]} 29... Qxe6 {[%clk 0:01:00.9]} 30. Rc4 {[%clk 0:00:40.4]}
30... Qf6 {[%clk 0:00:44.7]} 31. Kf2 {[%clk 0:00:34.3]} 31... Qh4+ {[%clk
0:00:44.3]} 32. Kf1 {[%clk 0:00:33.5]} 32... Qg3 {[%clk 0:00:41]} 33. Rc5 {[%clk
0:00:29.1]} 33... h4 {[%clk 0:00:35.7]} 34. Rd5 {[%clk 0:00:22.3]} 34... Rc8
{[%clk 0:00:28.7]} 35. Rxd3 {[%clk 0:00:21]} 35... Qh2 {[%clk 0:00:29]} 36. Kf2
{[%clk 0:00:17]} 36... Qh1 {[%clk 0:00:24.7]} 37. Qd1 {[%clk 0:00:16.6]} 37...
Qxd1 {[%clk 0:00:24.4]} 38. Rxd1 {[%clk 0:00:16.4]} 38... Rc2+ {[%clk
0:00:25.1]} 39. Kg1 {[%clk 0:00:16.5]} 39... Rxb2 {[%clk 0:00:25.3]} 40. Rd5
{[%clk 0:00:17]} 40... Kf6 {[%clk 0:00:23.5]} 41. Rxa5 {[%clk 0:00:16.6]} 41...
Rxb3 {[%clk 0:00:23.9]} 42. Rb5 {[%clk 0:00:15.4]} 42... Rb1+ {[%clk 0:00:20.8]}
43. Kf2 {[%clk 0:00:15.6]} 43... b3 {[%clk 0:00:20.5]} 44. a5 {[%clk 0:00:15.5]}
44... Ra1 {[%clk 0:00:17.4]} 45. Rxb3 {[%clk 0:00:14.4]} 45... Rxa5 {[%clk
0:00:17.4]} 46. Rb7 {[%clk 0:00:13.7]} 46... Ra2+ {[%clk 0:00:14.7]} 47. Kf1
{[%clk 0:00:12.4]} 47... Ra1+ {[%clk 0:00:14.6]} 48. Kf2 {[%clk 0:00:12.7]}
48... Ra2+ {[%clk 0:00:14.9]} 49. Kf1 {[%clk 0:00:13.1]} 49... Ra1+ {[%clk
0:00:13.8]} 50. Kf2 {[%clk 0:00:13.5]} 50... Ra2+ {[%clk 0:00:14.2]} 1/2-1/2

[Event "*** SCC Grand Prix: Titled Tuesday Blitz"]
[Site "Chess.com"]
[Date "2020.09.29"]
[Round "4"]
[White "Roza_Idrisova"]
[Black "stepanosinovsky"]
[Result "1-0"]
[WhiteElo "2128"]
[BlackElo "2330"]
[TimeControl "180+1"]
[EndTime "10:39:18 PDT"]
[Termination "Roza_Idrisova won on time"]

1. d4 {[%clk 0:03:00.9]} 1... Nf6 {[%clk 0:02:59.6]} 2. Nf3 {[%clk 0:03:00.9]}
2... g6 {[%clk 0:03:00.5]} 3. c4 {[%clk 0:03:00.4]} 3... Bg7 {[%clk 0:03:01.4]}
4. Nc3 {[%clk 0:03:00.7]} 4... O-O {[%clk 0:03:02.3]} 5. e4 {[%clk 0:03:00.9]}
5... d6 {[%clk 0:03:03.2]} 6. Be2 {[%clk 0:03:00.9]} 6... Nbd7 {[%clk
0:03:04.1]} 7. O-O {[%clk 0:03:00.7]} 7... e5 {[%clk 0:03:05]} 8. Re1 {[%clk
0:02:56.1]} 8... exd4 {[%clk 0:02:58.2]} 9. Nxd4 {[%clk 0:02:55.5]} 9... Re8
{[%clk 0:02:59.1]} 10. Bf1 {[%clk 0:02:54.6]} 10... Nc5 {[%clk 0:02:56]} 11. f3
{[%clk 0:02:53.1]} 11... a5 {[%clk 0:02:55.2]} 12. Be3 {[%clk 0:02:52.5]} 12...
a4 {[%clk 0:02:45.1]} 13. Qd2 {[%clk 0:02:51.5]} 13... Nfd7 {[%clk 0:02:41]} 14.
Rad1 {[%clk 0:02:50.1]} 14... Ne5 {[%clk 0:02:37.1]} 15. Nd5 {[%clk 0:02:47.9]}
15... c6 {[%clk 0:02:33.8]} 16. Nc3 {[%clk 0:02:44.4]} 16... Qa5 {[%clk
0:02:24.5]} 17. a3 {[%clk 0:02:34.6]} 17... Ne6 {[%clk 0:02:14.6]} 18. Qc2
{[%clk 0:02:27.9]} 18... Nxd4 {[%clk 0:02:07.9]} 19. Bxd4 {[%clk 0:02:27.6]}
19... Be6 {[%clk 0:02:08.5]} 20. Na2 {[%clk 0:02:17.2]} 20... f5 {[%clk
0:02:04.7]} 21. f4 {[%clk 0:02:05.8]} 21... Ng4 {[%clk 0:01:53.7]} 22. Bxg7
{[%clk 0:02:05.1]} 22... Kxg7 {[%clk 0:01:52.2]} 23. Qc3+ {[%clk 0:02:01.6]}
23... Qxc3 {[%clk 0:01:27.6]} 24. Nxc3 {[%clk 0:02:00.8]} 24... fxe4 {[%clk
0:01:17.6]} 25. Nxe4 {[%clk 0:01:58.5]} 25... d5 {[%clk 0:01:06]} 26. Nc5 {[%clk
0:01:53.7]} 26... Bf5 {[%clk 0:01:00.6]} 27. cxd5 {[%clk 0:01:48.3]} 27... Ne3
{[%clk 0:00:56.6]} 28. Rc1 {[%clk 0:01:44.4]} 28... cxd5 {[%clk 0:00:50.2]} 29.
Nxb7 {[%clk 0:01:37.7]} 29... d4 {[%clk 0:00:39]} 30. Nd6 {[%clk 0:01:35.4]}
30... Reb8 {[%clk 0:00:19.4]} 31. Rc7+ {[%clk 0:01:21.5]} 31... Kf6 {[%clk
0:00:18.4]} 32. Nxf5 {[%clk 0:01:10.9]} 32... gxf5 {[%clk 0:00:18.2]} 33. Rxh7
{[%clk 0:01:05.1]} 33... Rxb2 {[%clk 0:00:16.6]} 34. Rd7 {[%clk 0:01:03]} 34...
Rg8 {[%clk 0:00:11.5]} 35. g3 {[%clk 0:01:01.9]} 35... Nc2 {[%clk 0:00:08.2]}
36. Re2 {[%clk 0:00:56.4]} 36... Rgb8 {[%clk 0:00:06]} 37. Rd2 {[%clk
0:00:52.9]} 37... R8b3 {[%clk 0:00:03.8]} 38. Bd3 {[%clk 0:00:35.2]} 38... Ne1
{[%clk 0:00:03.2]} 39. Rxb2 {[%clk 0:00:31]} 39... Rxb2 {[%clk 0:00:03]} 40. Bc4
{[%clk 0:00:17.8]} 40... Nf3+ {[%clk 0:00:01.8]} 41. Kf1 {[%clk 0:00:16.5]}
41... Nd2+ {[%clk 0:00:02.2]} 42. Ke1 {[%clk 0:00:16.1]} 42... Nxc4 {[%clk
0:00:03.1]} 43. Rxd4 {[%clk 0:00:15.4]} 43... Rc2 {[%clk 0:00:02.3]} 44. h4
{[%clk 0:00:14.7]} 44... Ke6 {[%clk 0:00:01.4]} 45. h5 {[%clk 0:00:14.5]} 1-0

[Event "*** SCC Grand Prix: Titled Tuesday Blitz"]
[Site "Chess.com"]
[Date "2020.09.29"]
[Round "4"]
[White "abykhovsky"]
[Black "BillieKimbah"]
[Result "1/2-1/2"]
[WhiteElo "2737"]
[BlackElo "2917"]
[TimeControl "180+1"]
[EndTime "10:39:21 PDT"]
[Termination "Game drawn by agreement"]

1. d4 {[%clk 0:03:00.9]} 1... d5 {[%clk 0:02:59.2]} 2. c4 {[%clk 0:03:00.1]}
2... c6 {[%clk 0:02:59.2]} 3. Nf3 {[%clk 0:03:00.5]} 3... Nf6 {[%clk 0:02:58.8]}
4. Nc3 {[%clk 0:03:01]} 4... e6 {[%clk 0:02:59.2]} 5. Bg5 {[%clk 0:03:00.6]}
5... h6 {[%clk 0:02:55.8]} 6. Bxf6 {[%clk 0:03:00.7]} 6... Qxf6 {[%clk
0:02:55.8]} 7. g3 {[%clk 0:03:01.6]} 7... Nd7 {[%clk 0:02:53.7]} 8. Bg2 {[%clk
0:03:02.5]} 8... Qd8 {[%clk 0:02:54]} 9. O-O {[%clk 0:03:03.4]} 9... Be7 {[%clk
0:02:54.2]} 10. e3 {[%clk 0:03:03.3]} 10... O-O {[%clk 0:02:53.9]} 11. Qe2
{[%clk 0:03:03.8]} 11... b6 {[%clk 0:02:51.3]} 12. cxd5 {[%clk 0:02:49.7]} 12...
cxd5 {[%clk 0:02:46.6]} 13. Rac1 {[%clk 0:02:47.2]} 13... Bb7 {[%clk 0:02:45.4]}
14. Rc2 {[%clk 0:02:43.4]} 14... a6 {[%clk 0:02:25.7]} 15. Rfc1 {[%clk
0:02:37.8]} 15... Rc8 {[%clk 0:02:20.8]} 16. Ne1 {[%clk 0:02:01.5]} 16... Nf6
{[%clk 0:01:45.8]} 17. Nd3 {[%clk 0:01:58.2]} 17... Qd6 {[%clk 0:01:45.8]} 18.
Ne5 {[%clk 0:01:39.3]} 18... Nd7 {[%clk 0:01:20.6]} 19. Nd3 {[%clk 0:01:37]}
19... Rfd8 {[%clk 0:01:16.2]} 20. Qd1 {[%clk 0:01:24.8]} 20... Qb8 {[%clk
0:01:10.8]} 21. Ne2 {[%clk 0:01:24.3]} 21... Rxc2 {[%clk 0:01:09.5]} 22. Rxc2
{[%clk 0:01:25.2]} 22... Rc8 {[%clk 0:01:09.9]} 23. Qc1 {[%clk 0:01:24.1]} 23...
Rxc2 {[%clk 0:01:07.9]} 24. Qxc2 {[%clk 0:01:25]} 24... Bd6 {[%clk 0:01:08.5]}
25. a3 {[%clk 0:01:22.4]} 25... Qc7 {[%clk 0:01:08]} 26. Qxc7 {[%clk 0:01:22]}
26... Bxc7 {[%clk 0:01:08.9]} 27. Nc3 {[%clk 0:01:22.7]} 27... Kf8 {[%clk
0:01:07.9]} 28. f4 {[%clk 0:01:21.5]} 28... Ke7 {[%clk 0:01:07.3]} 29. Kf2
{[%clk 0:01:22]} 29... Bd6 {[%clk 0:01:03.5]} 30. Ke2 {[%clk 0:01:21.6]} 30...
Nb8 {[%clk 0:01:03.5]} 31. Bf3 {[%clk 0:01:19.7]} 31... g5 {[%clk 0:01:02.6]}
32. Kd2 {[%clk 0:01:18.5]} 32... Nc6 {[%clk 0:01:02.4]} 33. b4 {[%clk
0:01:12.3]} 33... Nb8 {[%clk 0:00:53.2]} 34. Na4 {[%clk 0:01:11.2]} 34... Nd7
{[%clk 0:00:53]} 35. Ne5 {[%clk 0:01:07.8]} 35... Nxe5 {[%clk 0:00:43.4]} 36.
dxe5 {[%clk 0:01:02.4]} 36... Bc7 {[%clk 0:00:44.3]} 37. Nc3 {[%clk 0:01:01.7]}
37... f6 {[%clk 0:00:42.3]} 38. exf6+ {[%clk 0:00:59.5]} 38... Kxf6 {[%clk
0:00:43.2]} 39. Ne2 {[%clk 0:01:00]} 39... Bd6 {[%clk 0:00:42.7]} 40. Nd4 {[%clk
0:00:58.8]} 40... a5 {[%clk 0:00:41.5]} 41. Kc3 {[%clk 0:00:55.7]} 41... axb4+
{[%clk 0:00:40.9]} 42. axb4 {[%clk 0:00:55.5]} 42... Bc8 {[%clk 0:00:40.8]} 43.
Bg4 {[%clk 0:00:54]} 43... Bd7 {[%clk 0:00:40.5]} 44. Bh3 {[%clk 0:00:48.4]}
44... Ke7 {[%clk 0:00:34.8]} 45. Bg4 {[%clk 0:00:33.3]} 45... Bb8 {[%clk
0:00:32.8]} 46. Bf3 {[%clk 0:00:27.1]} 46... Bd6 {[%clk 0:00:32]} 47. Bg4 {[%clk
0:00:27.2]} 47... e5 {[%clk 0:00:24.4]} 48. Nf5+ {[%clk 0:00:26]} 48... Bxf5
{[%clk 0:00:23.1]} 49. Bxf5 {[%clk 0:00:26]} 49... exf4 {[%clk 0:00:21.5]} 50.
exf4 {[%clk 0:00:25.8]} 50... gxf4 {[%clk 0:00:21.6]} 51. gxf4 {[%clk
0:00:26.3]} 51... Bxf4 {[%clk 0:00:21.9]} 52. h3 {[%clk 0:00:26.9]} 52... Kd6
{[%clk 0:00:22.3]} 53. Bg4 {[%clk 0:00:23.7]} 53... Ke5 {[%clk 0:00:22.5]} 54.
Kd3 {[%clk 0:00:23.4]} 54... Kd6 {[%clk 0:00:19.9]} 55. Bf3 {[%clk 0:00:22.8]}
55... b5 {[%clk 0:00:20]} 56. Bh5 {[%clk 0:00:22.4]} 56... Bg3 {[%clk
0:00:18.2]} 57. Be8 {[%clk 0:00:22]} 57... Be1 {[%clk 0:00:18.3]} 58. Bxb5
{[%clk 0:00:22]} 58... Bxb4 {[%clk 0:00:18.9]} 59. Ba4 {[%clk 0:00:20.6]}
1/2-1/2